bitfinex-derivatives/quotes_SOLF0:USTF0_20250425
["timestamp","ask_amount","ask_price","bid_price","bid_amount"]
[1745592375619,360.0,155.47,155.2,43.67034009]
[1745592375818,360.0,155.47,155.13,43.67034009]
[1745592375819,43.67034009,155.36,155.23,43.67034009]
[1745592376019,4.0991,155.35,155.23,43.67034009]
[1745592376219,4.0991,155.35,155.26,43.67034009]
[1745592376415,379.875645,155.27,155.26,50.10644009]
[1745592376619,369.956445,155.27,155.26,50.10644009]
[1745592376820,369.956445,155.27,155.23,43.67034009]
[1745592377016,369.956445,155.27,155.2,84.23034009]
[1745592377223,369.956445,155.27,155.15,40.52]
[1745592377428,6.4365,155.26,155.17,6.4398]
[1745592377628,369.956445,155.27,155.19,43.67034009]
[1745592377828,369.956445,155.27,155.22,43.67034009]
[1745592378231,369.956445,155.27,155.15,40.52]
[1745592378524,369.956445,155.27,155.21,43.67034009]
[1745592378731,369.956445,155.27,155.15,40.52]
[1745592379035,376.392545,155.27,155.17,6.4398]
[1745592379328,369.956445,155.27,155.18,43.67034009]
[1745592379724,373.940745,155.27,155.15,40.52]
[1745592379923,417.61108509,155.27,155.15,40.52]
[1745592380319,124.0,155.26,155.15,40.52]
[1745592380732,417.61108509,155.27,155.15,40.52]
[1745592380932,47.65464009,155.27,155.17,43.67034009]
[1745592381124,47.65464009,155.27,155.15,40.52]
[1745592381125,3.9843,155.27,155.15,40.52]
[1745592381727,3.9843,155.27,155.18,43.67034009]
[1745592381923,3.9843,155.27,155.21,43.67034009]
[1745592382129,47.65464009,155.27,155.15,40.52]
[1745592382325,6.4379,155.22,155.15,40.52]
[1745592382525,47.65464009,155.27,155.15,40.52]
[1745592382930,3.9843,155.27,155.17,43.67034009]
[1745592383431,3.9843,155.27,155.15,84.19034009]
[1745592384132,3.9843,155.27,155.15,40.52]
[1745592384331,6.4379,155.22,155.16,6.4402]
[1745592384532,3.9843,155.27,155.15,40.52]
[1745592384736,3.9843,155.27,155.16,43.67034009]
[1745592384929,6.4369,155.25,155.16,43.67034009]
[1745592385332,40.5,155.37,155.19,43.67034009]
[1745592385530,42.0,155.46,155.2,507.57034009]
[1745592385833,3.994,155.45,155.32,43.67034009]
[1745592386034,43.67034009,155.44,155.31,43.67034009]
[1745592386535,43.67034009,155.45,155.31,47.38564009]
[1745592386730,43.67034009,155.42,155.31,3.7153]
[1745592387136,4.0194,155.41,155.31,3.7153]
[1745592387532,4.0194,155.41,155.33,43.67034009]
[1745592387939,4.0194,155.41,155.33,50.10324009]
[1745592388132,4.0194,155.41,155.33,43.67034009]
[1745592388631,4.0194,155.41,155.31,47.38564009]
[1745592388830,43.28,155.46,155.34,43.67034009]
[1745592389027,1.12017768,155.54,155.4,43.67034009]
[1745592389239,43.67034009,155.6,155.43,43.67034009]
[1745592389437,43.67034009,155.49,155.36,43.67034009]
[1745592389639,43.67034009,155.46,155.33,43.67034009]
[1745592389935,43.67034009,155.43,155.32,7.7694]
[1745592390136,4.0194,155.48,155.37,43.67034009]
[1745592390335,4.0194,155.48,155.36,44.52]
[1745592390528,47.68974009,155.48,155.37,43.67034009]
[1745592390732,47.68974009,155.48,155.36,44.52]
[1745592390933,4.0194,155.48,155.4,43.67034009]
[1745592391138,4.0194,155.48,155.37,43.67034009]
[1745592391335,4.0194,155.48,155.4,43.67034009]
[1745592391537,4.0194,155.48,155.37,43.67034009]
[1745592391731,43.67034009,155.47,155.36,44.52]
[1745592391927,43.67034009,155.44,155.31,3.7153]
[1745592392132,43.67034009,155.41,155.31,3.7153]
[1745592392436,43.67034009,155.41,155.29,44.5]
[1745592392734,6.4294,155.43,155.36,6.4319]
[1745592392938,44.5,155.46,155.36,43.67034009]
[1745592393139,43.67034009,155.44,155.33,43.67034009]
[1745592393437,43.67034009,155.44,155.31,43.67034009]
[1745592393637,43.67034009,155.44,155.29,44.5]
[1745592393638,43.67034009,155.44,155.3,507.29034009]
[1745592393832,43.67034009,155.41,155.29,88.17034009]
[1745592394032,44.5,155.41,155.24,44.5]
[1745592394334,43.67034009,155.4,155.32,6.4334]
[1745592394537,43.67034009,155.38,155.27,43.67034009]
[1745592394737,3.7287,155.37,155.24,88.17034009]
[1745592394938,43.67034009,155.35,155.21,43.67034009]
[1745592395141,43.67034009,155.32,155.21,43.67034009]
[1745592395441,44.5,155.34,155.21,43.67034009]
[1745592395637,88.17034009,155.34,155.21,43.67034009]
[1745592396141,43.67034009,155.28,155.15,51.30474009]
[1745592396330,44.5,155.27,155.15,51.30474009]
[1745592396536,48.5668,155.27,155.15,51.30474009]
[1745592396937,50.10454009,155.31,155.23,6.4373]
[1745592397138,44.5,155.31,155.21,43.67034009]
[1745592398331,88.17034009,155.31,155.21,43.67034009]
[1745592398535,6.4345,155.3,155.24,6.4368]
[1745592398741,88.17034009,155.31,155.21,43.67034009]
[1745592398941,44.5,155.31,155.21,43.67034009]
[1745592399539,44.5,155.31,155.27,43.67034009]
[1745592399739,360.0,155.46,155.21,43.67034009]
[1745592399740,44.5,155.47,155.3,43.67034009]
[1745592399942,44.5,155.47,155.34,43.67034009]
[1745592400143,6.4287,155.44,155.3,44.5]
[1745592400441,43.67034009,155.42,155.3,44.5]
[1745592400642,44.5,155.41,155.3,44.5]
[1745592400841,44.5,155.43,155.33,43.67034009]
[1745592402039,0.24093,155.39,155.3,44.5]
[1745592402246,0.24093,155.39,155.36,43.67034009]
[1745592402441,0.24093,155.39,155.38,6.4308]
[1745592404039,0.24093,155.39,155.33,43.67034009]
[1745592404244,0.24093,155.39,155.3,44.5]
[1745592404438,0.24093,155.39,155.29,3.7493]
[1745592404745,0.24093,155.39,155.31,43.67034009]
[1745592404942,0.24093,155.39,155.34,43.67034009]
[1745592405249,0.24093,155.39,155.38,6.4312]
[1745592405640,3.711,155.48,155.37,43.67034009]
[1745592405835,7.8634,155.49,155.41,43.67034009]
[1745592406643,14.2901,155.49,155.43,6.429]
[1745592406844,7.8634,155.49,155.4,43.67034009]
[1745592407044,4.0923,155.49,155.38,3.9259]
[1745592407247,4.0923,155.49,155.41,6.4296]
[1745592407447,7.9815,155.49,155.38,3.9259]
[1745592407947,7.9815,155.49,155.4,6.4302]
[1745592408149,7.9815,155.49,155.38,3.9259]
[1745592408342,43.67034009,155.44,155.31,44.48]
[1745592408642,44.48,155.43,155.31,88.15034009]
[1745592408947,44.48,155.43,155.31,43.67034009]
[1745592409546,88.15034009,155.43,155.3,43.67034009]
[1745592409744,52.4615,155.49,155.33,43.67034009]
[1745592409947,4.0886,155.51,155.4,43.67034009]
[1745592410141,46.9,155.54,155.42,43.67034009]
[1745592410446,46.9,155.54,155.43,6.4288]
[1745592410646,46.9,155.54,155.42,43.67034009]
[1745592411048,43.67034009,155.52,155.39,43.67034009]
[1745592411238,46.9,155.54,155.42,43.67034009]
[1745592412040,46.9,155.54,155.45,6.4282]
[1745592412246,46.9,155.54,155.42,43.67034009]
[1745592412550,43.67034009,155.52,155.4,11.6877]
[1745592413048,43.67034009,155.49,155.36,43.67034009]
[1745592413244,43.67034009,155.46,155.34,3.978]
[1745592413445,48.32,155.45,155.34,3.978]
[1745592413842,48.32,155.45,155.36,43.67034009]
[1745592414041,91.99034009,155.54,155.39,43.67034009]
[1745592414444,48.32,155.54,155.39,43.67034009]
[1745592414748,91.99034009,155.54,155.39,43.67034009]
[1745592414951,43.67034009,155.51,155.39,43.67034009]
[1745592415248,48.32,155.54,155.34,3.978]
[1745592415441,43.67034009,155.45,155.34,3.978]
[1745592415639,48.32,155.46,155.38,43.67034009]
[1745592416048,48.3,155.51,155.41,43.67034009]
[1745592416447,48.3,155.51,155.42,3.9069]
[1745592416646,48.3,155.51,155.42,11.4453]
[1745592417147,48.3,155.51,155.42,55.11564009]
[1745592417349,6.4263,155.5,155.44,6.4283]
[1745592417548,6.4263,155.5,155.42,55.11564009]
[1745592417752,8.0193,155.56,155.45,43.67034009]
[1745592417949,49.47369194,155.59,155.51,6.4256]
[1745592418152,49.47369194,155.59,155.48,43.67034009]
[1745592418546,49.47369194,155.59,155.45,43.67034009]
[1745592419056,6.4252,155.53,155.48,6.427]
[1745592419352,6.4252,155.53,155.45,43.67034009]
[1745592419553,43.67034009,155.56,155.46,6.4277]
[1745592419753,43.67034009,155.56,155.45,43.67034009]
[1745592420355,43.67034009,155.56,155.43,48.3]
[1745592420749,43.67034009,155.53,155.44,6.4286]
[1745592421255,43.67034009,155.53,155.43,48.3]
[1745592421454,43.67034009,155.5,155.4,43.67034009]
[1745592421655,43.67034009,155.5,155.38,48.3]
[1745592421953,4.0204,155.49,155.38,48.3]
[1745592422155,6.4289,155.44,155.38,48.3]
[1745592422454,4.0204,155.49,155.38,48.3]
[1745592422853,462.98,155.56,155.4,43.67034009]
[1745592423055,4.0204,155.56,155.46,43.67034009]
[1745592423255,6.4247,155.54,155.48,6.4267]
[1745592423559,7.9483,155.57,155.46,43.67034009]
[1745592423759,6.4237,155.56,155.47,7.881]
[1745592424062,7.9483,155.57,155.47,7.881]
[1745592424249,6.4253,155.54,155.47,7.881]
[1745592424455,7.9483,155.57,155.47,7.881]
[1745592424755,51.61864009,155.57,155.47,7.881]
[1745592425159,51.61864009,155.57,155.45,54.0384]
[1745592425358,6.4259,155.53,155.47,6.428]
[1745592425559,51.61864009,155.57,155.45,54.0384]
[1745592426356,6.426,155.53,155.47,6.4277]
[1745592426557,51.61864009,155.57,155.47,6.4277]
[1745592426759,51.61864009,155.57,155.45,54.0384]
[1745592426955,43.67034009,155.54,155.46,6.4285]
[1745592427261,43.67034009,155.54,155.45,50.3]
[1745592427458,43.67034009,155.54,155.41,43.67034009]
[1745592427664,50.3,155.53,155.39,3.8192]
[1745592427860,43.67034009,155.5,155.39,3.8192]
[1745592428161,43.67034009,155.5,155.41,6.4302]
[1745592428361,43.67034009,155.5,155.39,3.8192]
[1745592428564,6.4284,155.47,155.39,3.8192]
[1745592428762,43.67034009,155.5,155.39,3.8192]
[1745592428959,43.67034009,155.5,155.39,10.2505]
[1745592428960,6.4289,155.46,155.39,10.2505]
[1745592429160,43.67034009,155.5,155.39,3.8192]
[1745592429360,43.67034009,155.47,155.36,513.36]
[1745592429559,6.4297,155.43,155.37,6.4319]
[1745592429760,7.9244,155.46,155.34,43.67034009]
[1745592429952,7.9244,155.46,155.37,43.67034009]
[1745592430355,4.0052,155.52,155.4,43.67034009]
[1745592430662,6.4267,155.51,155.45,6.4286]
[1745592430864,4.0052,155.52,155.43,43.67034009]
[1745592431067,43.67034009,155.51,155.41,7.5494]
[1745592431262,6.4286,155.46,155.41,6.4304]
[1745592431558,43.67034009,155.51,155.34,43.67034009]
[1745592431759,6.4299,155.43,155.37,6.432]
[1745592431956,97.72984009,155.45,155.33,58.1505]
[1745592432158,4.079,155.44,155.33,58.1505]
[1745592432358,8.0408,155.44,155.33,58.1505]
[1745592432753,54.0595,155.45,155.37,43.67034009]
[1745592433265,60.4885,155.45,155.4,6.4308]
[1745592433563,58.3269,155.5,155.37,43.67034009]
[1745592433765,6.4275,155.49,155.43,6.4294]
[1745592433964,58.3269,155.5,155.4,43.67034009]
[1745592434165,58.3269,155.5,155.37,43.67034009]
[1745592434665,50.3,155.5,155.42,43.67034009]
[1745592434865,43.67034009,155.51,155.35,50.3]
[1745592435160,43.67034009,155.51,155.38,43.67034009]
[1745592435468,3.7595,155.54,155.44,43.67034009]
[1745592436367,6.4258,155.53,155.47,6.4281]
[1745592436668,6.4258,155.53,155.44,43.67034009]
[1745592436961,43.67034009,155.54,155.41,43.67034009]
[1745592437163,43.67034009,155.51,155.38,506.65034009]
[1745592437666,4.0574,155.5,155.38,506.65034009]
[1745592437971,6.4274,155.49,155.44,6.429]
[1745592438267,4.0574,155.5,155.38,506.65034009]
[1745592438768,4.0574,155.5,155.38,462.98]
[1745592439169,10.4843,155.5,155.45,6.4287]
[1745592439373,4.0574,155.5,155.4,43.67034009]
[1745592439867,43.67034009,155.51,155.4,43.67034009]
[1745592440060,43.67034009,155.53,155.41,3.8629]
[1745592440259,47.72774009,155.54,155.41,11.5782]
[1745592440665,47.72774009,155.54,155.48,6.4276]
[1745592440868,4.0574,155.54,155.43,43.67034009]
[1745592441174,4.0574,155.54,155.46,6.4284]
[1745592441365,47.72774009,155.54,155.42,93.97034009]
[1745592441863,47.72774009,155.54,155.42,50.3]
[1745592442064,47.72774009,155.54,155.42,93.97034009]
[1745592442968,54.15324009,155.54,155.42,93.97034009]
[1745592443272,47.72774009,155.54,155.42,93.97034009]
[1745592443471,43.67034009,155.48,155.41,6.4302]
[1745592443671,43.67034009,155.48,155.37,43.67034009]
[1745592443967,7.6776,155.47,155.36,7.7475]
[1745592444166,43.67034009,155.45,155.36,7.7475]
[1745592444368,7.6776,155.47,155.36,7.7475]
[1745592444562,43.67034009,155.45,155.37,6.4319]
[1745592444767,47.67414009,155.46,155.36,7.7475]
[1745592445170,47.67414009,155.46,155.37,6.4321]
[1745592445567,47.67414009,155.46,155.33,4.0601]
[1745592445767,47.67414009,155.46,155.4,6.4306]
[1745592445968,47.67414009,155.46,155.35,43.67034009]
[1745592446667,4.0038,155.46,155.35,43.67034009]
[1745592446964,50.3,155.48,155.39,43.67034009]
[1745592447670,11.7772,155.54,155.42,43.67034009]
[1745592447671,62.0772,155.54,155.42,43.67034009]
[1745592448770,62.0772,155.54,155.45,6.4285]
[1745592448971,62.0772,155.54,155.42,43.67034009]
[1745592449366,62.0772,155.54,155.46,6.4284]
[1745592449867,62.0772,155.54,155.47,6.4277]
[1745592450071,62.0772,155.54,155.42,105.67034009]
[1745592450370,62.0772,155.54,155.46,6.4284]
[1745592450573,62.0772,155.54,155.42,105.67034009]
[1745592450868,62.0772,155.54,155.42,43.67034009]
[1745592451671,62.0772,155.54,155.49,6.427]
[1745592452071,62.0772,155.54,155.48,6.4275]
[1745592452373,62.0772,155.54,155.42,43.67034009]
[1745592452672,58.3026,155.54,155.45,43.67034009]
[1745592453676,58.3026,155.54,155.49,6.4271]
[1745592453975,8.0026,155.54,155.45,43.67034009]
[1745592454273,3.8632,155.58,155.45,92.65034009]
[1745592454667,3.8632,155.58,155.49,6.4269]
[1745592454868,3.8632,155.58,155.45,48.98]
[1745592454869,43.67034009,155.55,155.45,48.98]
[1745592455177,43.67034009,155.55,155.42,43.67034009]
[1745592455474,43.67034009,155.52,155.41,4.0333]
[1745592455973,48.98,155.54,155.43,43.67034009]
[1745592456765,43.67034009,155.57,155.41,4.0333]
[1745592456766,3.8632,155.58,155.41,4.0333]
[1745592456971,43.67034009,155.53,155.41,4.0333]
[1745592457367,43.67034009,155.56,155.43,43.67034009]
[1745592457776,3.8632,155.58,155.43,43.67034009]
[1745592458777,43.67034009,155.56,155.43,43.67034009]
[1745592459179,3.8632,155.58,155.43,43.67034009]
[1745592459872,3.8632,155.58,155.5,6.4266]
[1745592460074,3.8632,155.58,155.43,43.67034009]
[1745592460677,43.67034009,155.57,155.43,43.67034009]
[1745592460877,43.67034009,155.57,155.5,6.4266]
[1745592461279,43.67034009,155.57,155.43,43.67034009]
[1745592461477,43.67034009,155.57,155.49,6.427]
[1745592461879,43.67034009,155.57,155.43,43.67034009]
[1745592462079,43.67034009,155.57,155.5,6.4265]
[1745592462379,47.53354009,155.58,155.43,43.67034009]
[1745592462580,47.53354009,155.58,155.46,43.67034009]
[1745592462775,47.53354009,155.58,155.47,3.9796]
[1745592463575,1.17369194,155.59,155.49,43.67034009]
[1745592463979,1.17369194,155.59,155.49,47.47534009]
[1745592464683,1.17369194,155.59,155.58,6.4235]
[1745592464881,1.17369194,155.59,155.52,43.67034009]
[1745592465279,1.17369194,155.59,155.57,6.4236]
[1745592466986,1.17369194,155.59,155.49,3.805]
[1745592467288,1.17369194,155.59,155.51,43.67034009]
[1745592467490,1.17369194,155.59,155.55,6.4245]
[1745592467787,1.17369194,155.59,155.49,3.805]
[1745592468681,1.17369194,155.59,155.53,6.4254]
[1745592469194,1.17369194,155.59,155.56,6.4241]
[1745592469388,1.17369194,155.59,155.51,43.67034009]
[1745592469585,1.17369194,155.59,155.49,3.805]
[1745592469889,1.17369194,155.59,155.51,43.67034009]
[1745592470490,1.17369194,155.59,155.56,6.4243]
[1745592471091,1.17369194,155.59,155.51,43.67034009]
[1745592471590,1.17369194,155.59,155.57,6.4236]
[1745592472093,1.17369194,155.59,155.51,43.67034009]
[1745592472296,1.17369194,155.59,155.56,6.424]
[1745592473395,1.17369194,155.59,155.51,43.67034009]
[1745592474195,1.17369194,155.59,155.54,43.67034009]
[1745592475196,1.17369194,155.59,155.57,6.4236]
[1745592475397,1.17369194,155.59,155.53,26.62375361]
[1745592475599,1.17369194,155.59,155.57,6.4237]
[1745592475900,1.17369194,155.59,155.53,26.62375361]
[1745592476198,1.17369194,155.59,155.57,6.4236]
[1745592476598,1.17369194,155.59,155.56,26.62375361]
[1745592476893,339.32909485,155.84,155.56,26.62375361]
[1745592476894,468.3404125,155.8,155.56,26.62375361]
[1745592477094,3.9599,155.75,155.65,26.62375361]
[1745592477290,3.9599,155.75,155.68,26.62375361]
[1745592477490,3.9599,155.75,155.71,6.4181]
[1745592477692,3.9599,155.75,155.68,26.62375361]
[1745592477894,6.4158,155.77,155.7,6.4183]
[1745592478100,59.300275,155.78,155.68,26.62375361]
[1745592478496,59.300275,155.78,155.69,6.419]
[1745592478799,59.300275,155.78,155.69,4.0787]
[1745592479001,59.300275,155.78,155.69,8.0158]
[1745592479298,43.19926477,155.76,155.64,43.19926477]
[1745592479600,6.4166,155.75,155.65,6.4204]
[1745592479799,46.28,155.74,155.64,43.19926477]
[1745592479998,46.28,155.74,155.65,6.4205]
[1745592481497,46.28,155.74,155.64,47.11566477]
[1745592481696,97.47506477,155.79,155.67,43.19926477]
[1745592481897,7.9958,155.79,155.7,43.19926477]
[1745592482100,14.4109,155.79,155.7,43.19926477]
[1745592482301,7.9958,155.79,155.7,43.19926477]
[1745592482796,6.4153,155.78,155.7,43.19926477]
[1745592483005,46.28,155.83,155.73,43.19926477]
[1745592483196,3.9804,155.85,155.69,62.0]
[1745592483400,46.28,155.87,155.77,43.19926477]
[1745592483793,52.6919,155.87,155.78,10.4359]
[1745592484205,89.47926477,155.87,155.78,4.0207]
[1745592484502,43.19926477,155.81,155.63,46.28]
[1745592484702,43.19926477,155.78,155.68,47.21996477]
[1745592484896,43.19926477,155.75,155.64,3.7807]
[1745592485094,46.26,155.74,155.64,3.7807]
[1745592485300,6.4189,155.7,155.63,8.0648]
[1745592485500,43.19926477,155.72,155.63,8.0648]
[1745592485897,6.4187,155.7,155.6,6.4224]
[1745592486103,46.26,155.74,155.62,43.19926477]
[1745592486709,6.4179,155.72,155.63,6.4211]
[1745592487008,46.26,155.74,155.62,43.19926477]
[1745592487403,6.4177,155.73,155.64,6.421]
[1745592487603,46.26,155.74,155.62,43.19926477]
[1745592488101,43.19926477,155.73,155.59,11.2322]
[1745592488300,43.19926477,155.73,155.59,54.43146477]
[1745592488601,43.19926477,155.7,155.59,11.2322]
[1745592488805,11.6748,155.69,155.59,11.2322]
[1745592489002,43.19926477,155.67,155.58,46.26]
[1745592489301,43.19926477,155.64,155.54,12.0239]
[1745592489507,43.19926477,155.64,155.47,46.26]
[1745592489703,43.19926477,155.64,155.52,43.19926477]
[1745592489904,462.28,155.66,155.53,3.9867]
[1745592490106,6.4222,155.62,155.53,3.9867]
[1745592490309,462.28,155.66,155.53,3.9867]
[1745592491007,462.28,155.66,155.55,43.19926477]
[1745592491205,6.4207,155.65,155.58,6.4235]
[1745592491409,462.28,155.66,155.58,6.4235]
[1745592491609,462.28,155.66,155.56,4.0126]
[1745592492008,505.47926477,155.66,155.53,50.2467]
[1745592492210,6.4212,155.64,155.55,6.4245]
[1745592492410,505.47926477,155.66,155.53,50.2467]
[1745592492606,43.19926477,155.63,155.53,50.2467]
[1745592492805,43.19926477,155.63,155.53,3.9867]
[1745592493306,43.19926477,155.6,155.5,10.3881]
[1745592493506,44.96,155.59,155.5,3.9615]
[1745592493711,56.7334,155.59,155.48,4.0246]
[1745592493905,56.7334,155.59,155.45,3.7213]
[1745592493906,43.19926477,155.57,155.45,3.7213]
[1745592494212,56.7334,155.59,155.46,43.19926477]
[1745592494407,6.4252,155.54,155.45,10.1498]
[1745592494609,44.96,155.53,155.45,3.7213]
[1745592495513,44.96,155.53,155.44,3.9615]
[1745592496015,44.96,155.53,155.46,6.4281]
[1745592496210,44.96,155.53,155.46,43.19926477]
[1745592496514,44.96,155.53,155.48,6.4276]
[1745592496816,44.96,155.53,155.46,43.19926477]
[1745592497214,44.96,155.53,155.44,3.9615]
[1745592497410,44.96,155.53,155.43,43.19926477]
[1745592497616,6.4267,155.51,155.41,6.4305]
[1745592497818,3.783,155.5,155.4,43.19926477]
[1745592498011,3.783,155.5,155.43,6.4297]
[1745592498210,3.783,155.5,155.4,43.19926477]
[1745592498716,3.783,155.5,155.42,6.4298]
[1745592498914,3.783,155.5,155.4,43.19926477]
[1745592499211,43.19926477,155.49,155.39,7.737]
[1745592499414,51.12526477,155.49,155.39,7.737]
[1745592499614,51.12526477,155.49,155.36,6.4326]
[1745592499615,6.4293,155.44,155.36,6.4326]
[1745592499913,44.98,155.44,155.33,4.0044]
[1745592500211,51.4096,155.44,155.36,6.4323]
[1745592500415,44.98,155.44,155.38,43.19926477]
[1745592500618,52.906,155.49,155.38,43.19926477]
[1745592500914,6.4277,155.48,155.4,6.4308]
[1745592501113,52.906,155.49,155.39,4.0756]
[1745592501313,52.906,155.49,155.42,6.4301]
[1745592501513,52.906,155.49,155.39,4.0756]
[1745592501918,96.10526477,155.49,155.35,43.19926477]
[1745592502215,96.10526477,155.49,155.38,43.19926477]
[1745592502409,52.906,155.49,155.42,6.4299]
[1745592502614,52.906,155.49,155.38,43.19926477]
[1745592502816,52.906,155.49,155.42,6.4298]
[1745592503007,52.906,155.49,155.41,43.19926477]
[1745592503914,44.98,155.49,155.41,43.19926477]
[1745592504114,44.98,155.49,155.45,6.4288]
[1745592504316,44.98,155.49,155.42,4.0512]
[1745592505219,44.98,155.49,155.45,6.4286]
[1745592505416,44.98,155.49,155.44,43.19926477]
[1745592505608,7.8262,155.55,155.44,43.19926477]
[1745592505609,43.74,155.54,155.44,43.19926477]
[1745592506013,43.74,155.54,155.47,43.19926477]
[1745592506816,50.1655,155.54,155.47,43.19926477]
[1745592507320,43.74,155.54,155.44,43.19926477]
[1745592507616,43.19926477,155.53,155.42,4.0512]
[1745592508020,43.19926477,155.53,155.4,3.9053]
[1745592508414,43.74,155.54,155.42,43.19926477]
[1745592508613,43.74,155.54,155.45,43.19926477]
[1745592508921,43.74,155.54,155.5,6.4268]
[1745592509120,43.74,155.54,155.45,43.19926477]
[1745592509313,43.74,155.54,155.48,43.19926477]
[1745592509518,462.58,155.56,155.48,43.19926477]
[1745592509915,462.58,155.56,155.52,6.4257]
[1745592510123,462.58,155.56,155.48,43.19926477]
[1745592510824,1.34814,155.57,155.51,43.19926477]
[1745592511017,1.34814,155.57,155.54,6.4249]
[1745592511422,1.34814,155.57,155.51,43.19926477]
[1745592511822,1.34814,155.57,155.48,43.19926477]
[1745592512022,1.34814,155.57,155.5,6.4264]
[1745592512023,6.4247,155.56,155.5,6.4264]
[1745592512220,1.34814,155.57,155.45,43.19926477]
[1745592512521,1.34814,155.57,155.53,6.4253]
[1745592512723,1.34814,155.57,155.48,43.19926477]
[1745592513024,7.77214,155.57,155.52,6.4259]
[1745592513324,1.34814,155.57,155.45,43.19926477]
[1745592514220,1.34814,155.57,155.5,43.19926477]
[1745592514825,1.34814,155.57,155.56,6.4244]
[1745592515022,7.3786,155.62,155.53,43.19926477]
[1745592515721,360.0,155.73,155.53,43.19926477]
[1745592516023,54.54996477,155.71,155.61,43.19926477]
[1745592516429,54.54996477,155.71,155.59,43.19926477]
[1745592516617,43.19926477,155.68,155.57,43.19926477]
[1745592516821,43.19926477,155.68,155.53,43.19926477]
[1745592517025,6.4208,155.65,155.59,6.4231]
[1745592517428,43.74,155.66,155.53,43.19926477]
[1745592517624,43.74,155.66,155.59,43.19926477]
[1745592517826,11.3507,155.71,155.62,43.19926477]
[1745592518430,462.72,155.85,155.68,43.19926477]
[1745592518624,44.36187779,155.84,155.71,43.19926477]
[1745592518819,43.19926477,155.84,155.71,43.19926477]
[1745592519024,11.6603,155.83,155.71,43.19926477]
[1745592519228,43.19926477,155.81,155.69,11.6183]
[1745592519728,6.4161,155.77,155.7,6.4185]
[1745592520224,6.4161,155.76,155.69,18.0372]
[1745592520430,11.6603,155.83,155.68,43.72]
[1745592520431,43.19926477,155.78,155.68,43.72]
[1745592520631,50.93756477,155.75,155.64,43.19926477]
[1745592520830,3.7096,155.74,155.64,43.19926477]
[1745592521428,43.19926477,155.72,155.62,43.72]
[1745592521624,43.19926477,155.69,155.55,43.19926477]
[1745592521829,43.19926477,155.66,155.55,43.19926477]
[1745592522026,86.89926477,155.66,155.55,43.19926477]
[1745592522429,11.5395,155.65,155.55,43.19926477]
[1745592522629,6.4222,155.62,155.56,6.4243]
[1745592522831,11.5395,155.65,155.55,43.19926477]
[1745592523431,54.73876477,155.65,155.53,55.5841]
[1745592523731,6.4216,155.63,155.57,6.4239]
[1745592523931,11.5395,155.65,155.53,55.5841]
[1745592524132,11.5395,155.65,155.56,43.19926477]
[1745592524334,11.5395,155.65,155.53,55.5841]
[1745592524728,54.73876477,155.65,155.53,55.5841]
[1745592525136,11.5395,155.65,155.53,55.5841]
[1745592525330,6.4223,155.62,155.56,6.4243]
[1745592525630,6.4223,155.62,155.53,55.5841]
[1745592525631,11.5395,155.65,155.53,55.5841]
[1745592526528,11.5395,155.65,155.56,43.19926477]
[1745592527441,6.4215,155.63,155.57,6.4236]
[1745592527733,43.74,155.72,155.6,86.39852954]
[1745592527933,43.74,155.72,155.64,43.19926477]
[1745592528335,6.4186,155.7,155.64,49.62016477]
[1745592528630,43.74,155.72,155.59,43.74]
[1745592528830,43.19926477,155.71,155.59,86.93926477]
[1745592529034,43.19926477,155.71,155.6,6.4226]
[1745592529232,7.8431,155.73,155.62,43.19926477]
[1745592529533,7.8431,155.73,155.65,6.4203]
[1745592529734,7.8431,155.73,155.62,43.19926477]
[1745592530232,7.8431,155.73,155.65,43.19926477]
[1745592530533,7.8431,155.73,155.6,86.93926477]
[1745592530737,6.4183,155.71,155.64,6.4207]
[1745592530934,7.8431,155.73,155.6,86.93926477]
[1745592531137,7.8431,155.73,155.64,43.19926477]